[Event "Vasteras Open Minor 2018"]
[Site "Vasteras"]
[Date "2018.09.28"]
[Round "1"]
[White "Laine, Jacob"]
[Black "Arnason, Saemundur"]
[Result "0-1"]
[ECO "D00"]
[WhiteElo "1591"]
[BlackElo "1312"]
[Annotator "NA RC"]
[PlyCount "128"]
[EventDate "2018.09.28"]
[EventCountry "SWE"]
[SourceTitle "playchess.com"]
[Source "ChessBase"]
[SourceQuality "1"]
[TimeControl "900+5"]

1. d4 {[%emt 0:00:00]} d5 {[%emt 0:00:00]} 2. Bf4 {[%emt 0:00:00]} Nf6 {[%emt 0:00:00]} 3. e3 {[%emt 0:00:01]} c5 {[%emt 0:00:09]} 4. Nf3 {[%emt 0:00:21]} Nc6 {[%emt 0:00:02]} 5. c3 {[%emt 0:00:03]} Bf5 {[%emt 0:00:22]} 6. Nbd2 {[%emt 0:00:51]} e6 {[%emt 0:00:06]} 7. Nh4 {[%emt 0:01:40]} Bg6 {[%emt 0:00:29]} 8. Nxg6 {[%emt 0:00:26]} hxg6 {[%emt 0:00:02]} 9. Bd3 {[%emt 0:00:01]} Nh5 {[%emt 0:00:19]} 10. Bg3 {[%emt 0:01:19]} Nxg3 {[%emt 0:00:04]} 11. fxg3 {[%emt 0:00:01]} Be7 {[%emt 0:00:37]} 12. Nf3 {[%emt 0:01:23]} Qc7 {[%emt 0:00:40]} 13. Qc2 {[%emt 0:01:06]} c4 {[%emt 0:00:45]} 14. Be2 {[%emt 0:00:22]} Bd6 {[%emt 0:01:08]} 15. O-O-O {[%emt 0:00:38]} O-O-O {[%emt 0:00:20]} 16. e4 {[%emt 0:00:17]} Rhe8 {[%emt 0:00:39]} 17. Rhf1 {[%emt 0:02:06]} f5 {[%emt 0:01:30]} 18. exd5 {[%emt 0:01:50]} exd5 {[%emt 0:00:04]} 19. Ng5 {[%emt 0:00:10]} Qe7 {[%emt 0:00:28]} 20. Bf3 {[%emt 0:01:17]} Qxg5+ 21. Kb1 Bc7 {[%emt 0:00:39]} 22. Qa4 {[%emt 0:00:19]} a6 {[%emt 0:00:22]} 23. Ka1 {[%emt 0:00:44]} Kb8 {[%emt 0:00:24]} 24. b4 {[%emt 0:00:14]} cxb3 {[%emt 0:00:38]} 25. axb3 {[%emt 0:00:17]} Qe3 {[%emt 0:00:52]} 26. Rc1 {[%emt 0:00:01]} Re7 {[%emt 0:00:45]} 27. b4 {[%emt 0:00:08]} Na7 {[%emt 0:00:17]} 28. Qb3 {[%emt 0:00:31]} Red7 {[%emt 0:00:59]} 29. Rfe1 {[%emt 0:00:01]} Qg5 {[%emt 0:00:19]} 30. Re6 {[%emt 0:00:03]} Qxc1+ {[%emt 0:00:14]} 31. Ka2 {[%emt 0:00:08]} Nb5 {[%emt 0:00:20]} 32. Qb2 {[%emt 0:00:26]} Nxc3+ {[%emt 0:00:42]} 33. Kb3 {[%emt 0:00:03]} Qxb2+ {[%emt 0:00:01]} 34. Kxb2 {[%emt 0:00:01]} Ne4 {[%emt 0:00:11]} 35. Rxg6 {[%emt 0:00:01]} Ka7 {[%emt 0:00:12]} 36. g4 {[%emt 0:00:09]} fxg4 {[%emt 0:00:09]} 37. Bxg4 {[%emt 0:00:01]} Rf7 {[%emt 0:00:26]} 38. Bf3 {[%emt 0:00:01]} Bb6 {[%emt 0:00:10]} 39. Kc2 {[%emt 0:00:05]} Bxd4 {[%emt 0:00:06]} 40. Kd3 {[%emt 0:00:01]} Bb2 {[%emt 0:00:50]} 41. h3 {[%emt 0:00:05]} Ba3 {[%emt 0:00:23]} 42. b5 {[%emt 0:00:05]} axb5 {[%emt 0:00:05]} 43. Kd4 {[%emt 0:00:04]} Bb2+ {[%emt 0:00:11]} 44. Kd3 {[%emt 0:00:03]} Rd6 {[%emt 0:00:23]} 45. Rxd6 {[%emt 0:00:20]} Nxd6 {[%emt 0:00:01]} 46. Bxd5 {[%emt 0:00:03]} Rf6 {[%emt 0:00:31]} 47. h4 {[%emt 0:00:18]} Rh6 {[%emt 0:00:07]} 48. g3 {[%emt 0:00:04]} Be5 {[%emt 0:00:03]} 49. g4 {[%emt 0:00:10]} Rxh4 50. Be6 Rh3+ {[%emt 0:00:14]} 51. Ke2 {[%emt 0:00:06]} Rg3 {[%emt 0:00:01]} 52. Kd2 {[%emt 0:00:07]} b4 {[%emt 0:00:04]} 53. Kc2 {[%emt 0:00:01]} Ne4 {[%emt 0:00:07]} 54. Bf5 {[%emt 0:00:12]} Nf2 {[%emt 0:00:05]} 55. Be6 {[%emt 0:00:11]} Nxg4 {[%emt 0:00:02]} 56. Bf5 {[%emt 0:00:01]} Ne3+ {[%emt 0:00:04]} 57. Kb3 {[%emt 0:00:01]} Nxf5+ {[%emt 0:00:02]} 58. Kxb4 {[%emt 0:00:01]} Rc3 {[%emt 0:00:04]} 59. Kb5 {[%emt 0:00:00]} Kb8 {[%emt 0:00:12]} 60. Kb4 {[%emt 0:00:02]} Kc7 {[%emt 0:00:02]} 61. Kb5 {[%emt 0:00:00]} Kd6 {[%emt 0:00:06]} 62. Kb4 {[%emt 0:00:01]} Kd5 {[%emt 0:00:02]} 63. Ka4 {[%emt 0:00:01]} Kc5 {[%emt 0:00:04]} 64. Ka5 {[%emt 0:00:02]} Ra3# {[%emt 0:00:02]} 0-1

[Event "Vasteras Open Minor 2018"]
[Site "Vasteras"]
[Date "2018.09.28"]
[Round "1"]
[White "Nord, Gabriel"]
[Black "Gerdes, Sebastian"]
[Result "0-1"]
[ECO "B22"]
[WhiteElo "1577"]
[BlackElo "1301"]
[Annotator "NA"]
[PlyCount "86"]
[EventDate "2018.09.28"]
[EventCountry "SWE"]
[SourceTitle "playchess.com"]
[Source "ChessBase"]
[SourceQuality "1"]
[TimeControl "900+5"]

1. e4 {[%emt 0:00:00]} c5 {[%emt 0:00:00]} 2. c3 {[%emt 0:00:00]} d5 {[%emt 0:00:00]} 3. exd5 {[%emt 0:00:00]} Qxd5 {[%emt 0:00:00]} 4. d4 {[%emt 0:00:01]} Nc6 {[%emt 0:00:02]} 5. Nf3 {[%emt 0:00:07]} Bg4 {[%emt 0:00:03]} 6. Be2 {[%emt 0:00:20]} cxd4 {[%emt 0:00:05]} 7. cxd4 {[%emt 0:00:02]} Rd8 {[%emt 0:00:11]} 8. Nc3 {[%emt 0:00:02]} Qa5 {[%emt 0:00:01]} 9. Be3 {[%emt 0:00:31]} Nf6 {[%emt 0:00:15]} 10. O-O {[%emt 0:00:20]} g6 {[%emt 0:00:23]} 11. h3 {[%emt 0:00:04]} Bf5 {[%emt 0:00:17]} 12. Qb3 {[%emt 0:00:43]} Qc7 {[%emt 0:00:35]} 13. Rfd1 {[%emt 0:00:26]} e6 {[%emt 0:00:24]} 14. Rac1 {[%emt 0:00:45]} a6 {[%emt 0:00:45]} 15. Rd2 {[%emt 0:01:43]} Bg7 {[%emt 0:00:06]} 16. Qd1 {[%emt 0:01:19]} Ne4 {[%emt 0:00:24]} 17. Nxe4 {[%emt 0:00:08]} Bxe4 {[%emt 0:00:02]} 18. Qa4 {[%emt 0:01:40]} O-O {[%emt 0:00:09]} 19. Rdd1 {[%emt 0:01:20]} b5 {[%emt 0:00:46]} 20. Qb3 {[%emt 0:01:22]} Bd5 {[%emt 0:00:02]} 21. Qc2 {[%emt 0:00:08]} Qd7 {[%emt 0:00:45]} 22. b3 {[%emt 0:00:08]} Rc8 {[%emt 0:00:18]} 23. Qd2 {[%emt 0:00:14]} Ne7 {[%emt 0:00:51]} 24. Ne1 {[%emt 0:00:36]} Nf5 {[%emt 0:00:13]} 25. Bg4 {[%emt 0:01:21]} Nxe3 {[%emt 0:00:30]} 26. fxe3 {[%emt 0:00:02]} h5 {[%emt 0:00:24]} 27. Bf3 {[%emt 0:00:10]} Bh6 {[%emt 0:00:18]} 28. Bxd5 {[%emt 0:00:27]} Qxd5 {[%emt 0:00:02]} 29. Nd3 {[%emt 0:00:04]} Qe4 {[%emt 0:01:10]} 30. Kf2 {[%emt 0:00:13]} Qf5+ {[%emt 0:00:07]} 31. Ke2 {[%emt 0:00:29]} Qe4 {[%emt 0:00:02]} 32. Rg1 {[%emt 0:00:20]} Rxc1 {[%emt 0:00:27]} 33. Qxc1 {[%emt 0:00:01]} Rd8 {[%emt 0:00:02]} 34. Nc5 {[%emt 0:00:16]} Qc6 {[%emt 0:00:08]} 35. Qb2 {[%emt 0:00:13]} e5 {[%emt 0:00:10]} 36. b4 {[%emt 0:00:19]} exd4 {[%emt 0:00:05]} 37. exd4 {[%emt 0:00:01]} Qe8+ {[%emt 0:00:03]} 38. Kd1 {[%emt 0:00:07]} Qe3 {[%emt 0:00:02]} 39. Re1 {[%emt 0:01:13]} Rxd4+ {[%emt 0:00:02]} 40. Kc2 {[%emt 0:00:24]} Rc4+ {[%emt 0:00:19]} 41. Kd1 {[%emt 0:00:07]} Rd4+ {[%emt 0:00:23]} 42. Kc2 {[%emt 0:00:00]} Rd2+ {[%emt 0:00:02]} 43. Kc1 {[%emt 0:00:02]} Qxe1# {[%emt 0:00:01]} 0-1

[Event "Vasteras Open Minor 2018"]
[Site "Vasteras"]
[Date "2018.09.28"]
[Round "1"]
[White "Lofgren, John"]
[Black "Oskarsson, Anton Breki"]
[Result "1-0"]
[ECO "A00"]
[WhiteElo "1511"]
[BlackElo "1268"]
[Annotator "NA RC"]
[PlyCount "113"]
[EventDate "2018.09.28"]
[EventCountry "SWE"]
[SourceTitle "playchess.com"]
[Source "ChessBase"]
[SourceQuality "1"]
[TimeControl "900+5"]

1. c3 {[%emt 0:00:00]} d5 {[%emt 0:00:19]} 2. e4 {[%emt 0:00:00]} dxe4 {[%emt 0:00:46]} 3. Qa4+ {[%emt 0:00:00]} Bd7 {[%emt 0:00:08]} 4. Qxe4 {[%emt 0:00:03]} Nc6 {[%emt 0:00:07]} 5. d4 {[%emt 0:00:16]} Nf6 {[%emt 0:00:10]} 6. Qc2 {[%emt 0:00:01]} e6 {[%emt 0:00:10]} 7. Bg5 {[%emt 0:00:14]} Be7 {[%emt 0:00:01]} 8. Nd2 {[%emt 0:00:09]} h6 {[%emt 0:00:02]} 9. Bh4 {[%emt 0:00:02]} O-O {[%emt 0:00:02]} 10. Bd3 {[%emt 0:00:08]} a6 {[%emt 0:01:03]} 11. Ne2 {[%emt 0:01:27]} e5 {[%emt 0:00:47]} 12. Bxf6 {[%emt 0:03:16]} Bxf6 {[%emt 0:00:09]} 13. d5 {[%emt 0:00:05]} Ne7 {[%emt 0:00:19]} 14. c4 {[%emt 0:00:30]} Qc8 {[%emt 0:00:31]} 15. Ne4 {[%emt 0:00:23]} Bf5 {[%emt 0:01:03]} 16. Nxf6+ {[%emt 0:00:17]} gxf6 {[%emt 0:00:05]} 17. Ng3 {[%emt 0:00:29]} Bxd3 {[%emt 0:00:17]} 18. Qxd3 {[%emt 0:00:03]} Ng6 {[%emt 0:00:07]} 19. Nh5 {[%emt 0:00:33]} f5 {[%emt 0:01:15]} 20. h3 {[%emt 0:00:32]} Re8 {[%emt 0:01:20]} 21. Nf6+ {[%emt 0:00:05]} Kf8 {[%emt 0:00:38]} 22. Nxe8 {[%emt 0:00:03]} Kxe8 {[%emt 0:00:04]} 23. g3 {[%emt 0:00:29]} Qd7 {[%emt 0:00:22]} 24. b3 {[%emt 0:00:47]} Rd8 {[%emt 0:00:21]} 25. h4 {[%emt 0:00:20]} c6 {[%emt 0:00:32]} 26. O-O-O {[%emt 0:00:21]} b5 {[%emt 0:00:35]} 27. Rhe1 {[%emt 0:00:15]} bxc4 {[%emt 0:00:48]} 28. bxc4 {[%emt 0:00:16]} cxd5 {[%emt 0:00:05]} 29. Qxd5 {[%emt 0:00:36]} Qxd5 {[%emt 0:00:25]} 30. Rxd5 {[%emt 0:00:09]} Rc8 {[%emt 0:00:02]} 31. c5 {[%emt 0:00:02]} Kf8 {[%emt 0:00:11]} 32. Kb2 {[%emt 0:00:21]} Kg7 {[%emt 0:00:15]} 33. h5 {[%emt 0:00:04]} Nf8 {[%emt 0:00:36]} 34. Rexe5 {[%emt 0:00:19]} f4 {[%emt 0:00:10]} 35. gxf4 {[%emt 0:00:16]} Kh7 {[%emt 0:00:23]} 36. Re7 {[%emt 0:00:12]} Kg7 {[%emt 0:00:02]} 37. Kc3 {[%emt 0:00:05]} Ne6 38. Rxe6 {[%emt 0:00:20]} fxe6 {[%emt 0:00:29]} 39. Rd7+ {[%emt 0:00:02]} Kf6 {[%emt 0:00:07]} 40. Kd4 {[%emt 0:00:05]} Rc6 {[%emt 0:00:37]} 41. Rd6 {[%emt 0:00:06]} Rc7 {[%emt 0:00:30]} 42. Rxa6 {[%emt 0:00:02]} Rd7+ {[%emt 0:00:01]} 43. Ke4 {[%emt 0:00:18]} Rd2 {[%emt 0:00:01]} 44. f3 {[%emt 0:00:12]} Rh2 {[%emt 0:00:06]} 45. f5 {[%emt 0:00:06]} Rxh5 {[%emt 0:00:09]} 46. Rxe6+ {[%emt 0:00:02]} Kf7 {[%emt 0:00:10]} 47. c6 {[%emt 0:00:04]} Rh4+ {[%emt 0:00:07]} 48. f4 {[%emt 0:00:01]} Rh2 {[%emt 0:00:27]} 49. Ke5 {[%emt 0:00:15]} Rxa2 {[%emt 0:00:27]} 50. Rxh6 {[%emt 0:00:01]} Re2+ {[%emt 0:00:04]} 51. Kd6 {[%emt 0:00:06]} Rd2+ {[%emt 0:00:05]} 52. Kc7 {[%emt 0:00:01]} Rd4 {[%emt 0:00:12]} 53. Rd6 {[%emt 0:00:11]} Rxf4 {[%emt 0:00:08]} 54. Kd8 {[%emt 0:00:07]} Rxf5 {[%emt 0:01:06]} 55. c7 {[%emt 0:00:02]} Kg7 {[%emt 0:00:03]} 56. c8=Q {[%emt 0:00:07]} Rf8+ {[%emt 0:00:02]} 57. Kc7 {[%emt 0:00:01]} 1-0

[Event "Vasteras Open Minor 2018"]
[Site "Vasteras"]
[Date "2018.09.28"]
[Round "1"]
[White "Hakonardottir, Ylfa Yr Welding"]
[Black "Flykt, Gabriel"]
[Result "0-1"]
[ECO "C00"]
[WhiteElo "1310"]
[BlackElo "1584"]
[Annotator "NA"]
[PlyCount "120"]
[EventDate "2018.09.28"]
[EventCountry "SWE"]
[SourceTitle "playchess.com"]
[Source "ChessBase"]
[SourceQuality "1"]
[TimeControl "900+5"]

1. e4 {[%emt 0:00:00]} e6 {[%emt 0:00:00]} 2. Nf3 {[%emt 0:00:00]} d5 {[%emt 0:00:00]} 3. exd5 {[%emt 0:00:00]} exd5 {[%emt 0:00:00]} 4. b3 {[%emt 0:00:07]} Be7 {[%emt 0:00:16]} 5. Bb2 {[%emt 0:00:22]} Bf6 {[%emt 0:00:00]} 6. Qe2+ {[%emt 0:01:14]} Be6 {[%emt 0:00:09]} 7. Nd4 {[%emt 0:00:16]} Qe7 {[%emt 0:00:41]} 8. a4 {[%emt 0:01:46]} Bd7 {[%emt 0:02:39]} 9. Ra2 {[%emt 0:01:17]} a6 {[%emt 0:00:53]} 10. g3 {[%emt 0:01:01]} Nc6 {[%emt 0:00:10]} 11. Nxc6 {[%emt 0:00:44]} Bxc6 {[%emt 0:00:02]} 12. Qxe7+ {[%emt 0:00:17]} Nxe7 {[%emt 0:00:08]} 13. Bg2 {[%emt 0:00:46]} Bxb2 {[%emt 0:00:19]} 14. Rxb2 {[%emt 0:00:02]} O-O {[%emt 0:00:11]} 15. O-O {[%emt 0:00:08]} Rfe8 {[%emt 0:00:02]} 16. Nc3 {[%emt 0:01:30]} d4 {[%emt 0:00:27]} 17. Ne4 {[%emt 0:00:37]} Ng6 {[%emt 0:00:10]} 18. Re1 {[%emt 0:00:02]} f5 {[%emt 0:00:36]} 19. d3 {[%emt 0:01:27]} fxe4 {[%emt 0:00:03]} 20. dxe4 {[%emt 0:00:32]} Rad8 {[%emt 0:00:18]} 21. f3 {[%emt 0:00:28]} d3 {[%emt 0:00:13]} 22. cxd3 {[%emt 0:00:15]} Rxd3 {[%emt 0:00:00]} 23. g4 {[%emt 0:01:40]} Nf4 {[%emt 0:00:10]} 24. Kf2 {[%emt 0:00:53]} Nxg2 {[%emt 0:00:38]} 25. Kxg2 {[%emt 0:00:02]} Red8 {[%emt 0:00:00]} 26. Ree2 {[%emt 0:00:22]} b5 {[%emt 0:00:10]} 27. Rec2 {[%emt 0:00:26]} Be8 {[%emt 0:00:22]} 28. axb5 {[%emt 0:00:08]} Bxb5 {[%emt 0:00:07]} 29. Kg3 {[%emt 0:00:18]} c6 {[%emt 0:00:02]} 30. h3 {[%emt 0:00:02]} Re3 {[%emt 0:00:10]} 31. Rc5 {[%emt 0:00:14]} Rdd3 {[%emt 0:00:04]} 32. Rf5 {[%emt 0:00:07]} g6 {[%emt 0:00:04]} 33. Rf6 {[%emt 0:00:03]} Kg7 {[%emt 0:00:01]} 34. Rf4 {[%emt 0:00:03]} Rxb3 {[%emt 0:00:01]} 35. Rxb3 {[%emt 0:00:15]} Rxb3 {[%emt 0:00:01]} 36. e5 {[%emt 0:00:08]} Re3 {[%emt 0:00:03]} 37. Re4 {[%emt 0:00:13]} Rxe4 {[%emt 0:00:02]} 38. fxe4 {[%emt 0:00:01]} Kf7 {[%emt 0:00:01]} 39. Kf4 {[%emt 0:00:01]} h6 {[%emt 0:00:04]} 40. h4 {[%emt 0:00:02]} Ke6 {[%emt 0:00:01]} 41. g5 {[%emt 0:00:02]} h5 {[%emt 0:00:03]} 42. Kf3 {[%emt 0:00:03]} Kxe5 {[%emt 0:00:00]} 43. Ke3 {[%emt 0:00:00]} a5 {[%emt 0:00:01]} 44. Kd2 {[%emt 0:00:02]} Kxe4 {[%emt 0:00:00]} 45. Kc3 {[%emt 0:00:00]} a4 {[%emt 0:00:00]} 46. Kb2 {[%emt 0:00:01]} c5 {[%emt 0:00:01]} 47. Kc3 {[%emt 0:00:01]} a3 {[%emt 0:00:00]} 48. Kb3 {[%emt 0:00:02]} a2 {[%emt 0:00:04]} 49. Kxa2 {[%emt 0:00:01]} Kd3 {[%emt 0:00:00]} 50. Kb3 {[%emt 0:00:01]} c4+ {[%emt 0:00:00]} 51. Kb2 {[%emt 0:00:01]} Kd2 {[%emt 0:00:00]} 52. Kb1 {[%emt 0:00:02]} c3 {[%emt 0:00:00]} 53. Ka2 {[%emt 0:00:01]} c2 {[%emt 0:00:01]} 54. Kb2 {[%emt 0:00:01]} c1=Q+ {[%emt 0:00:02]} 55. Kb3 {[%emt 0:00:00]} Qc4+ {[%emt 0:00:03]} 56. Ka3 {[%emt 0:00:02]} Qa4+ {[%emt 0:00:11]} 57. Kb2 {[%emt 0:00:01]} Qb4+ {[%emt 0:00:02]} 58. Ka2 {[%emt 0:00:01]} Bc4+ {[%emt 0:00:00]} 59. Ka1 {[%emt 0:00:01]} Qa3+ {[%emt 0:00:01]} 60. Kb1 {[%emt 0:00:02]} Qa2# {[%emt 0:00:00]} 0-1

[Event "Vasteras Open Minor 2018"]
[Site "Vasteras"]
[Date "2018.09.28"]
[Round "1"]
[White "Muntean, Felix"]
[Black "Olsson, Dick"]
[Result "1-0"]
[ECO "C50"]
[WhiteElo "1276"]
[BlackElo "1554"]
[Annotator "NA"]
[PlyCount "79"]
[EventDate "2018.09.28"]
[EventCountry "SWE"]
[SourceTitle "playchess.com"]
[Source "ChessBase"]
[SourceQuality "1"]
[TimeControl "900+5"]

1. e4 {[%emt 0:00:00]} e5 {[%emt 0:00:00]} 2. Nf3 {[%emt 0:00:03]} Nc6 {[%emt 0:00:00]} 3. Bc4 {[%emt 0:00:07]} Nd4 {[%emt 0:00:00]} 4. c3 {[%emt 0:00:16]} Nxf3+ {[%emt 0:00:03]} 5. Qxf3 {[%emt 0:00:07]} Qf6 {[%emt 0:00:03]} 6. Qxf6 {[%emt 0:00:25]} Nxf6 {[%emt 0:00:02]} 7. d3 {[%emt 0:00:24]} Be7 {[%emt 0:00:06]} 8. O-O {[%emt 0:00:15]} O-O {[%emt 0:00:03]} 9. Re1 {[%emt 0:00:35]} Bc5 {[%emt 0:00:37]} 10. Be3 {[%emt 0:00:59]} Bxe3 {[%emt 0:00:23]} 11. Rxe3 {[%emt 0:00:08]} Re8 {[%emt 0:00:01]} 12. f3 {[%emt 0:00:35]} c6 {[%emt 0:00:03]} 13. Nd2 {[%emt 0:00:51]} d5 {[%emt 0:00:04]} 14. exd5 {[%emt 0:00:11]} cxd5 {[%emt 0:00:02]} 15. Bb5 {[%emt 0:00:12]} Re7 {[%emt 0:00:01]} 16. d4 {[%emt 0:00:15]} e4 {[%emt 0:00:21]} 17. fxe4 {[%emt 0:00:20]} Nxe4 {[%emt 0:00:10]} 18. Rae1 {[%emt 0:00:28]} Bf5 {[%emt 0:00:06]} 19. h3 {[%emt 0:01:27]} a6 {[%emt 0:00:02]} 20. Bd3 {[%emt 0:00:37]} Rae8 {[%emt 0:00:11]} 21. g4 {[%emt 0:00:35]} Bg6 {[%emt 0:00:01]} 22. Kg2 {[%emt 0:00:24]} Kf8 {[%emt 0:00:03]} 23. Bxe4 {[%emt 0:00:53]} dxe4 {[%emt 0:00:38]} 24. Kg3 {[%emt 0:00:12]} h5 {[%emt 0:01:12]} 25. gxh5 {[%emt 0:00:19]} Bxh5 {[%emt 0:00:02]} 26. Kf4 {[%emt 0:00:15]} Bg6 {[%emt 0:00:39]} 27. Nxe4 {[%emt 0:00:16]} Bxe4 {[%emt 0:01:21]} 28. Rxe4 {[%emt 0:00:05]} g5+ {[%emt 0:00:10]} 29. Kf5 {[%emt 0:00:21]} Rxe4 {[%emt 0:00:46]} 30. Rxe4 {[%emt 0:00:03]} Rxe4 {[%emt 0:00:01]} 31. Kxe4 {[%emt 0:00:03]} Ke7 {[%emt 0:00:07]} 32. Ke5 {[%emt 0:00:34]} f6+ {[%emt 0:00:02]} 33. Kf5 {[%emt 0:00:13]} b5 {[%emt 0:00:12]} 34. b3 {[%emt 0:00:15]} a5 {[%emt 0:00:02]} 35. a4 {[%emt 0:00:08]} bxa4 {[%emt 0:01:12]} 36. bxa4 {[%emt 0:00:03]} Kf7 {[%emt 0:00:10]} 37. c4 {[%emt 0:00:01]} Ke7 {[%emt 0:00:02]} 38. c5 {[%emt 0:00:04]} Kf7 {[%emt 0:00:07]} 39. d5 {[%emt 0:00:01]} Ke7 {[%emt 0:00:01]} 40. d6+ {[%emt 0:00:16]} 1-0

[Event "Vasteras Open Minor 2018"]
[Site "Vasteras"]
[Date "2018.09.28"]
[Round "1"]
[White "Jonsson, Kristjan Dagur"]
[Black "Morell, Adam"]
[Result "1/2-1/2"]
[ECO "A21"]
[WhiteElo "1267"]
[BlackElo "1511"]
[Annotator "NA RC"]
[PlyCount "90"]
[EventDate "2018.09.28"]
[EventCountry "SWE"]
[SourceTitle "playchess.com"]
[Source "ChessBase"]
[SourceQuality "1"]
[TimeControl "900+5"]

1. c4 e5 {[%emt 0:00:01]} 2. Nc3 {[%emt 0:00:00]} Bb4 {[%emt 0:00:08]} 3. g3 {[%emt 0:00:06]} Bxc3 {[%emt 0:00:02]} 4. bxc3 {[%emt 0:00:07]} d6 {[%emt 0:00:12]} 5. Bg2 {[%emt 0:00:06]} Nf6 {[%emt 0:00:06]} 6. e3 {[%emt 0:00:10]} Nbd7 {[%emt 0:00:20]} 7. Ne2 {[%emt 0:00:17]} O-O {[%emt 0:00:26]} 8. O-O {[%emt 0:00:19]} Nb6 {[%emt 0:01:39]} 9. d3 {[%emt 0:01:55]} Rb8 {[%emt 0:00:42]} 10. e4 {[%emt 0:00:37]} Bg4 {[%emt 0:01:09]} 11. h3 {[%emt 0:00:43]} Be6 {[%emt 0:00:30]} 12. Be3 {[%emt 0:00:32]} Qd7 {[%emt 0:00:20]} 13. g4 {[%emt 0:00:48]} c5 {[%emt 0:03:04]} 14. Bg5 {[%emt 0:01:21]} Ne8 {[%emt 0:01:12]} 15. Bh4 {[%emt 0:01:03]} Na4 {[%emt 0:00:51]} 16. Qb3 {[%emt 0:00:53]} b5 {[%emt 0:01:06]} 17. f4 {[%emt 0:02:05]} Bxg4 {[%emt 0:00:56]} 18. hxg4 {[%emt 0:00:19]} Qxg4 {[%emt 0:00:02]} 19. Be7 {[%emt 0:00:04]} Qxe2 {[%emt 0:00:41]} 20. Bxf8 {[%emt 0:00:13]} Kxf8 {[%emt 0:00:53]} 21. cxb5 {[%emt 0:00:09]} Nb6 {[%emt 0:00:15]} 22. fxe5 {[%emt 0:00:08]} c4 {[%emt 0:00:47]} 23. dxc4 {[%emt 0:00:22]} Qxc4 {[%emt 0:00:38]} 24. e6 {[%emt 0:00:33]} f6 {[%emt 0:00:32]} 25. Qxc4 {[%emt 0:00:37]} Nxc4 {[%emt 0:00:01]} 26. a4 {[%emt 0:00:08]} Ke7 {[%emt 0:00:06]} 27. Bh3 {[%emt 0:00:27]} Nc7 {[%emt 0:00:11]} 28. Rf4 {[%emt 0:00:24]} Nxe6 {[%emt 0:00:13]} 29. Bxe6 {[%emt 0:00:01]} Kxe6 {[%emt 0:00:02]} 30. Rh4 {[%emt 0:00:02]} h6 {[%emt 0:00:04]} 31. Kf2 {[%emt 0:00:26]} Kf7 {[%emt 0:00:05]} 32. Rg1 {[%emt 0:00:21]} Ne5 {[%emt 0:00:05]} 33. Rd1 {[%emt 0:00:17]} Rd8 {[%emt 0:00:12]} 34. Rd4 {[%emt 0:00:14]} Rd7 {[%emt 0:00:03]} 35. Rh1 {[%emt 0:00:06]} Ke6 {[%emt 0:00:01]} 36. Rhd1 {[%emt 0:00:03]} Nf7 {[%emt 0:00:04]} 37. c4 {[%emt 0:00:05]} Ne5 {[%emt 0:00:07]} 38. a5 {[%emt 0:00:16]} g6 {[%emt 0:00:02]} 39. b6 {[%emt 0:00:42]} axb6 {[%emt 0:00:03]} 40. axb6 {[%emt 0:00:01]} h5 {[%emt 0:00:02]} 41. Rb1 {[%emt 0:00:11]} Nc6 {[%emt 0:00:08]} 42. Rdd1 {[%emt 0:00:08]} Rb7 {[%emt 0:00:04]} 43. Ke3 {[%emt 0:00:04]} g5 {[%emt 0:00:08]} 44. Kf3 {[%emt 0:00:04]} h4 {[%emt 0:00:07]} 45. Kg4 {[%emt 0:00:09]} Ne5+ {[%emt 0:00:05]} 1/2-1/2

[Event "Vasteras Open Minor 2018"]
[Site "Vasteras"]
[Date "2018.09.28"]
[Round "2"]
[White "Nilsson, Ulf"]
[Black "Muntean, Felix"]
[Result "1-0"]
[ECO "C58"]
[WhiteElo "2001"]
[BlackElo "1276"]
[Annotator "NA RC"]
[PlyCount "25"]
[EventDate "2018.09.28"]
[EventCountry "SWE"]
[SourceTitle "playchess.com"]
[Source "ChessBase"]
[SourceQuality "1"]
[TimeControl "900+5"]

1. e4 {[%emt 0:00:00]} e5 {[%emt 0:00:04]} 2. Nf3 {[%emt 0:00:00]} Nc6 {[%emt 0:00:11]} 3. Bc4 {[%emt 0:00:06]} Nf6 {[%emt 0:00:18]} 4. Ng5 {[%emt 0:00:07]} d5 {[%emt 0:00:10]} 5. exd5 {[%emt 0:00:17]} Na5 {[%emt 0:01:01]} 6. Bb5+ {[%emt 0:00:18]} Bd7 {[%emt 0:00:31]} 7. Qe2 {[%emt 0:00:36]} Bd6 {[%emt 0:00:39]} 8. d4 {[%emt 0:01:12]} O-O {[%emt 0:02:09]} 9. O-O {[%emt 0:01:37]} Nxd5 {[%emt 0:00:29]} 10. dxe5 {[%emt 0:00:43]} Bxb5 {[%emt 0:00:55]} 11. Qxb5 {[%emt 0:00:15]} c6 {[%emt 0:00:09]} 12. Qd3 {[%emt 0:00:20]} Bxe5 {[%emt 0:00:27]} 13. Qxh7# {[%emt 0:00:20]} 1-0

[Event "Vasteras Open Minor 2018"]
[Site "Vasteras"]
[Date "2018.09.28"]
[Round "2"]
[White "Flykt, Gabriel"]
[Black "Backlund, Elias"]
[Result "1-0"]
[ECO "A34"]
[WhiteElo "1584"]
[BlackElo "1329"]
[Annotator "NA RC"]
[PlyCount "55"]
[EventDate "2018.09.28"]
[EventCountry "SWE"]
[SourceTitle "playchess.com"]
[Source "ChessBase"]
[SourceQuality "1"]
[TimeControl "900+5"]

1. c4 {[%emt 0:00:00]} Nf6 {[%emt 0:00:00]} 2. Nc3 {[%emt 0:00:00]} c5 {[%emt 0:00:05]} 3. g3 {[%emt 0:00:00]} g6 {[%emt 0:00:06]} 4. Bg2 {[%emt 0:00:02]} Nc6 {[%emt 0:00:04]} 5. d3 {[%emt 0:00:11]} d6 {[%emt 0:00:05]} 6. e4 {[%emt 0:00:02]} Bg7 {[%emt 0:00:04]} 7. Nge2 {[%emt 0:00:11]} O-O {[%emt 0:00:05]} 8. O-O {[%emt 0:00:28]} Bd7 {[%emt 0:00:08]} 9. h3 {[%emt 0:00:09]} a6 {[%emt 0:00:42]} 10. Be3 {[%emt 0:00:15]} Rb8 {[%emt 0:00:28]} 11. a4 {[%emt 0:00:28]} Nb4 {[%emt 0:00:23]} 12. f4 {[%emt 0:00:21]} Ne8 {[%emt 0:00:55]} 13. f5 {[%emt 0:00:20]} Nc7 {[%emt 0:00:23]} 14. Qd2 {[%emt 0:00:17]} Kh8 {[%emt 0:01:07]} 15. d4 cxd4 {[%emt 0:01:31]} 16. Bxd4 {[%emt 0:01:19]} Nc6 {[%emt 0:00:41]} 17. Bxg7+ {[%emt 0:00:10]} Kxg7 {[%emt 0:00:03]} 18. b3 {[%emt 0:02:16]} Ne5 {[%emt 0:00:34]} 19. Rf4 {[%emt 0:01:25]} Ne8 {[%emt 0:00:38]} 20. Kh2 {[%emt 0:00:15]} Nf6 {[%emt 0:00:04]} 21. Raf1 {[%emt 0:01:14]} Qb6 {[%emt 0:00:34]} 22. Nc1 {[%emt 0:00:38]} Qb4 {[%emt 0:00:58]} 23. Qe3 {[%emt 0:00:46]} Rbd8 {[%emt 0:01:10]} 24. fxg6 {[%emt 0:00:16]} fxg6 {[%emt 0:00:23]} 25. Nd5 {[%emt 0:00:18]} Nxd5 {[%emt 0:00:17]} 26. exd5 {[%emt 0:00:02]} b5 {[%emt 0:00:46]} 27. cxb5 {[%emt 0:00:31]} axb5 {[%emt 0:00:02]} 28. Rxb4 {[%emt 0:00:01]} 1-0